bitfinex-derivatives/quotes_ETHF0:USTF0_20241229
["timestamp","ask_amount","ask_price","bid_price","bid_amount"]
[1735508560822,0.29813,3361.2,3361.1,7.4614607]
[1735508562122,0.29813,3361.2,3361.1,11.98142956]
[1735508563623,3.51320417,3361.6,3361.1,11.98142956]
[1735508563624,3.06694028,3361.6,3361.5,0.29811]
[1735508563821,3.06694028,3361.6,3361.5,3.50591]
[1735508563822,1.67274028,3361.6,3361.5,3.50591]
[1735508564021,0.70964028,3361.6,3361.5,3.50591]
[1735508565327,0.29805,3362.1,3361.5,17.0218751]
[1735508565526,0.29805,3362.1,3361.9,3.2078]
[1735508565927,0.29806,3362.0,3361.9,3.2078]
[1735508566430,0.29805,3362.2,3361.9,3.50587]
[1735508566829,0.29805,3362.2,3361.9,8.02583886]
[1735508567934,0.29806,3362.1,3361.9,7.72776886]
[1735508568132,0.2987,3362.3,3361.9,7.72776886]
[1735508568436,0.29806,3362.1,3361.9,7.72776886]
[1735508568634,0.29806,3362.1,3362.0,7.72776886]
[1735508570334,0.29806,3362.1,3362.0,14.7351981]
[1735508571840,0.29806,3362.1,3362.0,7.72776886]
[1735508573040,0.29806,3362.1,3362.0,3.2078]
[1735508574140,0.29806,3362.0,3361.9,7.00742924]
[1735508574539,3.71646969,3362.0,3361.9,7.00742924]
[1735508574940,8.71646969,3362.0,3361.9,7.00742924]
[1735508575140,11.92426969,3362.0,3361.9,7.00742924]
[1735508576433,11.92426969,3362.0,3361.2,7.00742924]
[1735508576738,0.29812,3361.3,3361.2,7.00742924]
[1735508576938,1.46912,3361.3,3361.2,7.00742924]
[1735508577638,0.29814,3361.1,3361.0,7.00742924]
[1735508578847,0.29814,3361.1,3361.0,4.64211543]
[1735508580745,0.29813,3361.3,3361.0,4.94025543]
[1735508580950,0.29813,3361.3,3361.1,3.2078]
[1735508581941,0.8651,3361.4,3361.1,3.2078]
[1735508582145,0.29813,3361.2,3361.1,10.21522924]
[1735508582749,0.29813,3361.3,3361.1,10.21522924]
[1735508583049,0.8651,3361.4,3361.1,10.21522924]
[1735508583250,0.29813,3361.3,3361.1,10.21522924]
[1735508583551,0.29813,3361.3,3361.1,14.85619099]
[1735508583852,0.4364,3361.4,3361.1,14.85619099]
[1735508584048,0.4364,3361.4,3361.3,0.29812]
[1735508584751,0.447,3361.8,3361.1,17.10360068]
[1735508584943,0.447,3361.8,3361.7,3.50589]
[1735508585547,0.73227,3362.0,3361.7,3.2078]
[1735508585749,0.73227,3362.0,3361.8,0.29808]
[1735508586044,0.73227,3362.0,3361.7,3.2078]
[1735508586045,0.29808,3361.9,3361.7,3.50589]
[1735508586251,0.29808,3361.9,3361.7,3.2078]
[1735508586439,0.29808,3361.8,3361.7,3.2078]
[1735508586642,0.29808,3361.8,3361.7,7.84876175]
[1735508588051,0.29808,3361.8,3361.7,14.85419666]
[1735508589356,0.29808,3361.8,3361.7,7.84876175]
[1735508598851,0.29808,3361.8,3361.7,8.14685175]
[1735508599247,0.73226,3362.0,3361.9,0.29807]
[1735508599454,0.29803,3362.4,3362.1,0.29805]
[1735508599656,0.4505,3362.5,3362.1,0.29805]
[1735508599955,0.4505,3362.5,3362.0,0.29805]
[1735508600154,0.29805,3362.1,3362.0,0.29805]
[1735508600854,0.29805,3362.2,3361.9,11.69019828]
[1735508601055,0.29805,3362.2,3362.1,0.29805]
[1735508601251,0.29805,3362.2,3362.1,3.2078]
[1735508602157,0.4595,3362.4,3362.1,3.2078]
[1735508602354,0.4595,3362.4,3362.1,7.84580925]
[1735508602960,0.29804,3362.2,3362.1,7.84580925]
[1735508603549,0.29804,3362.2,3362.1,4.63800925]
[1735508603950,0.4595,3362.4,3362.0,9.34125075]
[1735508604253,0.75935,3362.1,3362.0,9.34125075]
[1735508605651,0.75935,3362.1,3362.0,4.64014511]
[1735508605845,0.75935,3362.1,3362.0,3.94304511]
[1735508606553,0.75935,3362.1,3362.0,3.24604511]
[1735508606554,3.00675969,3362.1,3362.0,3.24604511]
[1735508606756,0.29808,3361.8,3361.7,3.2078]
[1735508606957,2.54548969,3361.8,3361.7,3.2078]
[1735508607857,0.29808,3361.8,3361.7,3.2078]
[1735508610862,0.29808,3361.8,3361.7,10.2157889]
[1735508611555,0.29808,3361.8,3361.7,7.0079889]
[1735508611756,0.29808,3361.8,3361.7,10.2157889]
[1735508613956,0.29808,3361.8,3361.7,3.2078]
[1735508616260,0.29809,3361.7,3361.6,9.63935075]
[1735508616558,0.29809,3361.7,3361.6,12.84715075]
[1735508617561,0.29809,3361.7,3361.6,9.63935075]
[1735508618063,0.29809,3361.7,3361.6,12.84715075]
[1735508618658,0.4613,3362.1,3361.6,12.54905075]
[1735508618864,0.29808,3361.8,3361.7,0.29808]
[1735508619966,0.29808,3361.8,3361.7,9.63933075]
[1735508620359,0.29808,3361.8,3361.7,9.34125075]
[1735508620960,0.29807,3361.8,3361.7,7.01580779]
[1735508622166,0.29807,3361.8,3361.7,0.29808]
[1735508625168,0.4613,3362.1,3361.9,0.29805]
[1735508625169,0.29806,3362.0,3361.9,0.29805]
[1735508626575,0.29806,3362.0,3361.9,18.76291153]
[1735508627969,0.29806,3362.0,3361.9,23.32482487]
[1735508628370,0.29806,3362.0,3361.9,23.02677487]
[1735508629368,0.29806,3362.0,3361.9,4.56191334]
[1735508630664,0.29806,3362.0,3361.9,13.90316409]
[1735508633071,0.29806,3362.0,3361.9,17.11096409]
[1735508634870,0.29806,3362.0,3361.9,7.76971334]
[1735508635974,0.29806,3362.0,3361.9,4.56191334]
[1735508636674,0.29806,3362.0,3361.9,13.90316409]
[1735508641675,0.29806,3362.0,3361.9,4.56191334]
[1735508642978,0.29806,3362.0,3361.9,9.24677935]
[1735508644474,0.29806,3362.0,3361.9,11.58943632]
[1735508646280,3.51293542,3362.2,3361.9,11.58943632]
[1735508646475,3.81097542,3362.2,3362.1,0.29804]
[1735508647380,0.29804,3362.2,3362.1,0.29804]
[1735508648880,0.29804,3362.2,3362.1,4.85995334]
[1735508649575,0.4595,3362.4,3362.1,4.56191334]
[1735508649880,0.75752,3362.4,3362.3,3.2078]
[1735508652076,0.75752,3362.4,3362.3,26.24003112]
[1735508653476,0.75752,3362.4,3362.3,14.79472334]
[1735508654777,0.75752,3362.4,3362.3,7.76971334]
[1735508657931,0.75752,3362.4,3362.3,26.23836741]
[1735508659684,0.29802,3362.4,3362.3,26.23836741]
[1735508659989,0.29802,3362.4,3362.3,17.11096409]
[1735508661587,0.29802,3362.4,3362.3,17.40899409]
[1735508662582,0.29802,3362.4,3362.3,14.20119409]
[1735508662782,0.29802,3362.4,3362.3,17.11096409]
[1735508663287,0.29802,3362.4,3362.3,17.40899409]
[1735508663887,0.29802,3362.4,3362.3,17.11096409]
[1735508664784,0.29802,3362.4,3362.3,13.90316409]
[1735508664989,0.29802,3362.4,3362.3,17.11096409]
[1735508666794,0.29802,3362.4,3362.3,7.76971334]
[1735508667199,0.29802,3362.4,3362.3,8.22111334]
[1735508667493,0.29802,3362.4,3362.3,8.51914334]
[1735508667690,0.29802,3362.4,3362.3,8.22111334]
[1735508675087,0.29802,3362.4,3362.3,17.56236409]
[1735508676297,0.29802,3362.4,3362.3,14.35456409]
[1735508676493,0.29802,3362.4,3362.3,17.56236409]
[1735508676693,0.29802,3362.4,3362.3,5.01331334]
[1735508677095,0.29802,3362.4,3362.3,8.22111334]
[1735508678002,0.29802,3362.4,3362.3,5.01331334]
[1735508678194,0.29802,3362.4,3362.3,8.22111334]
[1735508681594,0.29802,3362.4,3362.3,15.23944149]
[1735508682800,0.29802,3362.4,3362.3,12.03164149]
[1735508684406,0.29802,3362.4,3362.3,5.01331334]
[1735508685504,0.29802,3362.4,3362.3,4.56191334]
[1735508686906,0.29802,3362.4,3362.3,11.58279053]
[1735508690005,0.29802,3362.4,3362.3,4.56191334]
[1735508690006,1.36201137,3362.4,3362.3,4.56191334]
[1735508690903,8.70499968,3362.4,3362.3,1.77471334]
[1735508691104,8.70499968,3362.4,3362.3,0.03416976]
[1735508692304,0.29803,3362.3,3362.0,4.68581124]
[1735508692504,1.36203137,3362.1,3362.0,4.68581124]
[1735508692714,2.53303137,3362.1,3362.0,4.68581124]
[1735508694214,2.53303137,3362.1,3361.8,4.68581124]
[1735508694215,0.29806,3361.9,3361.8,4.68581124]
[1735508694417,1.36205137,3361.9,3361.8,4.68581124]
[1735508695410,1.36205137,3361.9,3361.8,5.12441124]
[1735508698214,1.36205137,3361.9,3361.8,0.4386]
[1735508705536,1.06399137,3361.9,3361.5,7.89361124]
[1735508705820,1.36208137,3361.6,3361.5,7.89361124]
[1735508707422,3.70549733,3361.6,3361.5,3.2078]
[1735508708420,2.64150596,3361.6,3361.5,3.2078]
[1735508708619,3.70549733,3361.6,3361.5,3.2078]
[1735508710221,1.36208137,3361.6,3361.5,3.2078]
[1735508710624,0.29812,3361.2,3361.1,0.4185]
[1735508710822,2.53311137,3361.2,3361.1,0.4185]
[1735508711726,0.29813,3361.1,3361.0,4.68581124]
[1735508712114,0.29813,3361.1,3360.8,0.4209]
[1735508712115,1.06399137,3361.1,3360.8,0.4209]
[1735508712322,1.36214137,3360.9,3360.8,0.4209]
[1735508712725,0.29817,3360.7,3360.6,5.58221124]
[1735508713026,1.36216137,3360.7,3360.6,5.14761124]
[1735508713424,1.36216137,3360.7,3360.6,0.4618]
[1735508714324,2.54873332,3360.7,3360.6,0.4618]
[1735508715521,2.25056332,3360.7,3360.3,0.4314]
[1735508715720,2.54875332,3360.4,3360.3,0.4314]
[1735508715926,3.71975332,3360.4,3360.3,0.4314]
[1735508716326,3.42156332,3360.4,3360.0,0.8736]
[1735508716529,2.54878332,3360.1,3360.0,1.3168]
[1735508719726,0.29822,3360.1,3360.0,1.3168]
[1735508721227,2.54878332,3360.1,3360.0,1.3168]
[1735508724832,5.75658332,3360.1,3360.0,1.3168]
[1735508727237,5.75658332,3360.1,3360.0,0.8736]
[1735508736238,5.63770924,3360.1,3360.0,0.8736]
[1735508737152,0.29824,3359.5,3359.4,0.4629]
[1735508737438,2.53508462,3359.5,3359.4,0.4629]
[1735508740233,3.72147418,3359.5,3359.4,1.3483]
[1735508740631,3.72147418,3359.5,3359.4,0.4698215]
[1735508740831,4.14137418,3359.5,3359.4,0.45]
[1735508741335,0.29832,3358.6,3358.5,3.2078]
[1735508741732,0.29834,3358.4,3358.3,0.45]
[1735508746940,0.53409075,3358.4,3358.3,0.45]
[1735508747639,0.29834,3358.4,3358.3,0.45]
[1735508753540,3.6644121,3358.7,3358.3,0.45]
[1735508753751,3.6644121,3358.7,3358.6,3.2078]
[1735508753944,3.9627021,3358.7,3358.6,3.2078]
[1735508757943,2.7917021,3358.7,3358.6,3.2078]
[1735508759052,0.2983,3358.6,3358.5,3.2078]
[1735508760646,2.4934121,3358.7,3358.3,0.45]
[1735508760947,2.55054418,3358.4,3358.3,0.45]
[1735508764249,1.36501203,3358.4,3358.3,0.45]
[1735508767053,0.29836,3357.9,3357.8,0.4426]
[1735508767251,0.29836,3357.9,3357.8,1.3251]
[1735508767252,1.36506203,3357.9,3357.8,1.3251]
[1735508767749,1.81946203,3357.9,3357.8,1.3251]
[1735508768145,0.75276,3357.9,3357.8,1.3251]
[1735508771058,0.99625775,3357.9,3357.8,1.3251]
[1735508771361,0.99625775,3357.9,3357.8,0.8825]
[1735508772766,0.99625775,3357.9,3357.8,1.3217]
[1735508774168,0.99625775,3357.9,3357.8,0.4444]
[1735508774765,0.29836,3357.8,3357.7,3.2078]
[1735508778276,1.172,3358.1,3357.7,3.2078]
[1735508778569,0.29835,3357.9,3357.8,0.4391]
[1735508778774,0.29835,3357.9,3357.8,0.8869]
[1735508780175,0.29835,3357.9,3357.8,4.0947]
[1735508783281,0.29835,3357.9,3357.8,3.2078]
[1735508783582,0.29835,3357.9,3357.8,7.89361124]
[1735508784783,0.29835,3357.9,3357.8,3.2078]
[1735508787378,0.29835,3357.9,3357.8,7.89361124]
[1735508788679,0.29835,3357.9,3357.8,3.2078]
[1735508790087,2.63838853,3357.9,3357.8,3.2078]
[1735508790384,2.63838853,3357.9,3357.6,4.68581124]
[1735508790385,14.11521939,3357.9,3357.6,4.68581124]
[1735508790586,1.3655572,3357.7,3357.6,4.68581124]
[1735508790981,8.86573086,3357.7,3357.6,4.68581124]
[1735508791887,0.29838,3357.4,3357.3,4.68581124]
[1735508792086,1.47038,3357.4,3357.3,4.68581124]
[1735508792989,2.5375872,3357.4,3357.3,4.68581124]
[1735508793390,2.5375872,3357.4,3357.2,8.74421124]
[1735508793881,2.5375972,3357.4,3357.2,8.74421124]
[1735508794279,1.47039,3357.4,3357.2,8.74421124]
[1735508794477,1.47039,3357.4,3357.3,4.68581124]
[1735508794884,0.77339,3357.4,3357.3,4.68581124]
[1735508796883,0.77339,3357.4,3357.3,7.89632927]
[1735508797787,0.77339,3357.4,3357.3,14.73288635]
[1735508800390,0.77339,3357.4,3357.3,7.70416949]
[1735508801984,0.77339,3357.4,3357.3,9.18436545]
[1735508802493,1.23209,3357.4,3357.3,9.18436545]
[1735508802887,0.29838,3357.3,3357.2,5.76507162]
[1735508803191,0.29838,3357.3,3357.2,1.26364524]
[1735508803192,2.55249565,3357.3,3357.2,1.26364524]
[1735508803392,5.76029565,3357.3,3357.2,1.26364524]
[1735508803790,0.29842,3356.9,3356.8,3.2078]
[1735508803989,2.55253565,3356.9,3356.8,3.2078]
[1735508805085,4.89257418,3356.9,3356.8,3.2078]
[1735508805288,12.06539292,3356.9,3356.3,3.2078]
[1735508805492,0.29846,3356.4,3356.3,3.2078]
[1735508805691,2.55257565,3356.4,3356.3,3.2078]
[1735508805893,5.46191565,3356.4,3355.9,9.34125075]
[1735508806094,2.55261565,3356.0,3355.9,9.34125075]
[1735508806294,2.55261565,3356.0,3355.8,9.34125075]
[1735508806295,0.29851,3355.9,3355.8,9.34125075]
[1735508806494,1.93051,3355.9,3355.8,9.34125075]
[1735508807889,0.29854,3355.6,3355.5,1.3265]
[1735508808491,2.55265565,3355.6,3355.5,1.3265]
[1735508809298,0.29854,3355.5,3355.4,3.2078]
[1735508809895,2.55265565,3355.5,3355.4,3.2078]
[1735508812096,3.43011565,3355.5,3355.4,3.2078]
[1735508812499,2.25411565,3355.8,3355.4,3.2078]
[1735508812800,2.34003853,3356.1,3355.9,0.29849]
[1735508813004,2.34003853,3356.1,3356.0,3.2078]
[1735508813907,0.29848,3356.1,3356.0,3.2078]
[1735508816503,2.25411565,3356.2,3355.5,3.2078]
[1735508816698,2.55264565,3355.6,3355.5,3.2078]
[1735508821413,2.55264565,3355.6,3355.1,3.2078]
[1735508821414,2.25411565,3355.6,3355.1,3.2078]
[1735508821610,0.29856,3355.2,3355.1,3.2078]
[1735508828209,2.25411565,3355.6,3355.1,3.2078]
[1735508828405,2.25411565,3355.6,3355.5,3.2078]
[1735508829714,2.25411565,3355.6,3355.5,3.6557]
[1735508830216,2.25411565,3355.9,3355.5,3.95423]
[1735508830413,2.25411565,3356.2,3355.5,3.6557]
[1735508830711,2.25411565,3356.5,3356.0,3.2078]
[1735508830909,2.25411565,3356.5,3356.4,3.2078]
[1735508831312,2.25411565,3356.8,3356.4,3.50625]
[1735508831914,2.25411565,3356.8,3356.4,3.2078]
[1735508832208,2.25411565,3356.8,3356.6,0.29843]
[1735508832518,2.25411565,3357.1,3356.4,8.2078]
[1735508832714,2.25411565,3357.1,3357.0,3.2078]
[1735508833916,2.55248565,3357.4,3357.0,3.2078]
[1735508834117,2.55248565,3357.4,3357.1,0.4202]
[1735508834417,2.25411565,3357.4,3357.1,1.61329]
[1735508835617,2.25411565,3357.7,3357.3,0.29837]
[1735508835807,2.25411565,3357.7,3357.5,3.2078]
[1735508838113,2.25411565,3358.3,3357.5,8.2078]
[1735508838314,2.25411565,3358.3,3358.2,3.2078]
[1735508842621,2.55238565,3358.6,3358.2,3.2078]
[1735508842815,2.55237565,3358.6,3358.2,3.2078]
[1735508843015,2.25411565,3358.6,3358.2,3.2078]
[1735508843620,0.29824,3358.8,3358.3,0.29828]
[1735508843918,1.183,3359.1,3358.7,3.2078]
[1735508844117,1.48122,3359.1,3358.7,3.2078]
[1735508844318,1.48122,3359.1,3358.8,0.4549]
[1735508844523,1.183,3359.1,3358.8,0.4549]
[1735508844726,0.29823,3359.0,3358.8,0.4549]
[1735508844919,0.29822,3359.0,3358.8,0.4549]
[1735508845722,2.25411565,3359.2,3358.8,0.4549]
[1735508846023,0.2982,3359.3,3358.8,0.75314]
[1735508846228,0.2982,3359.3,3358.8,1.17274]
[1735508846927,0.29821,3359.2,3358.8,0.8745]
[1735508847725,2.25411565,3359.2,3358.8,0.8745]
[1735508847930,2.55234565,3358.9,3358.8,0.4549]
[1735508850220,0.29823,3358.9,3358.8,0.4549]
[1735508854132,2.25411565,3359.2,3358.8,0.4549]
[1735508854334,0.29822,3359.1,3358.8,0.4549]
[1735508854639,0.29823,3359.0,3358.8,0.4549]
[1735508856633,3.43611565,3359.6,3358.9,0.29823]
[1735508856933,0.29821,3359.2,3359.1,3.2078]
[1735508862835,15.15844371,3359.2,3358.2,3.2078]
[1735508863136,0.2983,3358.1,3358.0,0.8916]
[1735508863439,0.29832,3357.9,3357.8,3.2078]
[1735508865131,0.29834,3357.8,3357.5,1.3205]
[1735508865336,0.29834,3357.8,3357.7,3.2078]
[1735508871837,0.29833,3357.8,3357.7,3.2078]
[1735508878847,0.29833,3357.8,3357.5,1.61885]
[1735508879146,0.29833,3357.8,3357.7,3.2078]
[1735508884350,2.37684,3358.3,3357.7,3.50614]
[1735508884351,0.29833,3357.9,3357.7,3.50614]
[1735508884548,0.29832,3358.0,3357.8,0.29833]
[1735508884748,0.4491,3358.3,3357.8,0.29833]
[1735508885052,0.4491,3358.3,3357.7,3.2078]
[1735508885255,0.29833,3357.8,3357.7,3.2078]
[1735508886942,0.29833,3357.8,3357.5,1.61885]
[1735508886943,0.29837,3357.4,3357.3,7.02179975]
[1735508887144,0.29837,3357.4,3357.1,6.0531697]
[1735508887145,0.29838,3357.2,3357.1,6.0531697]
[1735508887345,0.29843,3356.7,3356.4,16.38419942]
[1735508887545,3.50623,3356.7,3356.4,16.38419942]
[1735508888354,3.2078,3356.7,3356.3,0.897]
[1735508888553,0.29845,3356.4,3356.3,0.897]
[1735508892545,0.2985,3355.9,3355.8,3.2078]
[1735508893746,0.2985,3355.9,3355.8,3.50631]
[1735508893950,0.2985,3355.9,3355.8,3.93301]
[1735508894550,2.71291565,3356.5,3355.8,3.6345]
[1735508894751,0.2985,3356.0,3355.8,3.933]
[1735508896055,0.2985,3356.0,3355.8,0.7252]
[1735508897257,3.2078,3357.0,3355.9,2.25411565]
[1735508897553,2.25411565,3356.9,3356.2,3.2078]
[1735508898252,0.29847,3356.3,3356.2,3.50627]
[1735508898455,5.46191565,3356.6,3355.8,0.4267]
[1735508898650,0.2985,3355.9,3355.8,0.4267]
[1735508899046,3.2078,3356.6,3355.8,0.4267]
[1735508899254,0.29848,3356.2,3356.1,3.2078]
[1735508899553,0.2985,3356.0,3355.8,0.7252]
[1735508900258,0.2985,3356.0,3355.8,0.4267]
[1735508900453,0.2985,3356.0,3355.9,0.2985]
[1735508900647,0.29847,3356.3,3355.8,0.4267]
[1735508900847,0.2985,3355.9,3355.8,0.4267]
[1735508901152,0.2985,3355.9,3355.8,0.72521]
[1735508901861,0.2985,3355.9,3355.8,0.4267]
[1735508902059,0.29851,3355.8,3355.7,3.2078]
[1735508902256,0.29855,3355.3,3355.2,3.2078]
[1735508903059,3.2078,3355.4,3355.0,0.8953]
[1735508903259,0.29857,3355.1,3355.0,0.8953]
[1735508904152,0.29856,3355.3,3355.0,0.8953]
[1735508904351,0.29856,3355.3,3355.1,0.29857]
[1735508904863,0.29856,3355.3,3355.0,4.1031]
[1735508905058,1.47053,3355.6,3355.0,6.35721565]
[1735508905251,0.29853,3355.6,3355.0,6.35721565]
[1735508905555,3.2078,3356.0,3355.0,6.35721565]
[1735508905761,0.29854,3355.5,3355.3,0.29855]
[1735508907960,0.29854,3355.5,3355.4,0.29854]
[1735508912073,0.29853,3355.6,3355.5,0.29853]
[1735508912265,3.2078,3356.0,3355.6,0.29853]
[1735508912266,0.29852,3355.7,3355.6,0.29853]
[1735508912468,0.29852,3355.7,3355.6,0.72043]
[1735508912764,0.29852,3355.7,3355.6,0.4219]
[1735508916469,0.29853,3355.5,3355.4,3.2078]
[1735508919661,3.2078,3355.5,3354.7,0.4377]
[1735508919869,0.29857,3355.1,3354.8,0.29859]
[1735508920368,0.4552,3355.4,3354.8,0.29859]
[1735508920569,0.29858,3355.0,3354.8,0.29859]
[1735508921271,0.4552,3355.4,3354.8,0.29859]
[1735508921272,0.29859,3354.9,3354.8,0.29859]
[1735508923166,0.29859,3355.0,3354.8,0.29859]
[1735508924467,0.29859,3355.0,3354.8,0.2986]
[1735508924970,0.29859,3354.9,3354.8,0.2986]
[1735508925170,0.29857,3355.2,3354.8,0.2986]
[1735508925372,0.29857,3355.2,3354.7,0.4377]
[1735508925675,0.29857,3355.1,3354.8,0.2986]
[1735508926270,0.29857,3355.1,3355.0,3.2078]
[1735508926462,0.29857,3355.2,3355.0,3.2078]
[1735508927866,3.50634,3355.5,3355.2,0.29855]
[1735508928064,3.50634,3355.5,3355.0,3.2078]
[1735508928065,3.2078,3355.5,3355.3,0.9049]
[1735508928663,0.4185,3355.8,3355.3,0.9049]
[1735508928876,1.172,3356.0,3355.4,3.6289]
[1735508929080,1.4705,3356.0,3355.8,0.29851]
[1735508929269,5.54015047,3356.1,3356.0,0.29849]
[1735508929680,5.54015047,3356.1,3356.0,0.72939]
[1735508930073,2.33235047,3356.1,3356.0,3.93719]
[1735508930578,0.29845,3356.5,3356.2,0.29847]
[1735508931378,0.441,3356.6,3356.1,0.4211]
[1735508931577,0.73944,3356.6,3356.3,0.29846]
[1735508931872,3.2078,3356.8,3356.5,0.29844]
[1735508932069,3.2078,3356.8,3356.6,0.4252]
[1735508933379,3.50622,3356.8,3356.6,0.4252]
[1735508933974,3.2078,3356.8,3356.6,0.4252]
[1735508934674,3.50622,3356.8,3356.6,0.4252]
[1735508936472,0.29848,3356.1,3356.0,3.6387]
[1735508936675,2.68081565,3356.7,3356.0,3.6387]
[1735508936983,2.68081565,3356.7,3355.9,4.66875062]
[1735508936984,0.29849,3356.0,3355.9,4.66875062]
[1735508937184,3.50629,3356.0,3355.9,4.66875062]
[1735508937383,3.50629,3356.0,3355.3,0.72105]
[1735508937384,0.2985,3355.9,3355.8,4.66875062]
[1735508938679,0.2985,3355.9,3355.4,0.29854]
[1735508938680,4.0777,3356.0,3355.4,0.29854]
[1735508938882,0.29852,3355.8,3355.4,0.29854]
[1735508939081,4.0777,3356.0,3355.3,0.4225]
[1735508939380,0.29853,3355.7,3355.3,0.4225]
[1735508939578,4.0777,3356.0,3355.4,0.4548]
[1735508939779,0.29855,3355.6,3355.4,0.4548]
[1735508940375,0.29856,3355.4,3355.3,0.4225]
[1735508941085,2.25411565,3355.5,3355.1,3.39927301]
[1735508941275,0.29858,3355.2,3355.1,0.19147301]
[1735508942482,0.29859,3355.1,3354.9,0.4537]
[1735508946082,0.2986,3355.0,3354.9,0.4537]
[1735508946481,3.2078,3355.1,3354.6,8.33275062]
[1735508946679,0.29862,3354.8,3354.6,8.33275062]
[1735508947080,0.29863,3354.7,3354.6,8.33275062]
[1735508947278,3.50643,3354.7,3354.6,4.66875062]
[1735508948885,3.50643,3354.7,3354.4,0.4417]
[1735508948886,0.29864,3354.6,3354.4,0.4417]
[1735508950076,0.29865,3354.5,3354.4,0.4417]
[1735508950482,2.25411565,3354.5,3354.0,4.66875062]
[1735508950682,0.29868,3354.1,3354.0,2.38485062]
[1735508951282,3.2078,3354.3,3354.0,2.38485062]
[1735508951478,3.50647,3354.3,3354.1,0.426]
[1735508951788,0.29867,3354.2,3354.1,0.426]
[1735508952087,0.29867,3354.2,3354.0,2.38485062]
[1735508952088,0.29868,3354.1,3354.0,2.38485062]
[1735508952387,0.2987,3353.9,3353.5,0.72473]
[1735508952577,0.29871,3353.8,3353.5,0.426]
[1735508952782,2.25411565,3354.2,3353.5,0.426]
[1735508952983,2.25411565,3353.9,3353.5,0.426]
[1735508953183,0.29872,3353.7,3353.5,0.426]
[1735508953491,2.25411565,3353.9,3353.5,0.426]
[1735508953492,0.29871,3353.8,3353.5,0.426]
[1735508953690,5.46191565,3353.6,3352.9,7.0284987]
[1735508953989,0.29874,3353.5,3353.1,0.29877]
[1735508954181,5.46191565,3353.6,3352.9,7.0284987]
[1735508954584,0.29874,3353.5,3353.1,0.29876]
[1735508954782,3.50653,3353.6,3353.2,0.29876]
[1735508954985,3.50653,3353.6,3353.3,0.4198]
[1735508955787,0.29874,3353.5,3353.3,0.4198]
[1735508956587,0.29877,3353.1,3353.0,0.4272]
[1735508959297,0.29879,3352.9,3352.7,3.2078]
[1735508959494,2.55290565,3352.9,3352.2,3.2078]
[1735508959696,0.2988,3352.8,3352.2,3.2078]
[1735508959891,0.29882,3352.5,3352.3,0.4532]
[1735508960501,0.29883,3352.4,3352.3,0.4532]
[1735508961692,1.47983,3352.4,3352.1,0.4352]
[1735508961897,1.47983,3352.4,3351.6,3.2078]
[1735508961898,0.29889,3351.8,3351.7,0.4508]
[1735508962090,2.25411565,3352.2,3351.7,0.8776]
[1735508962291,0.29889,3351.8,3351.7,0.8776]
[1735508962500,0.29889,3351.8,3351.7,0.4508]
[1735508962798,2.55300565,3351.8,3351.7,0.4508]
[1735508963299,3.2078,3352.1,3351.7,0.4508]
[1735508963701,2.25411565,3351.9,3351.7,0.4508]
[1735508964007,2.25411565,3351.9,3351.6,3.2078]
[1735508964008,2.25411565,3351.9,3350.9,3.2078]
[1735508964207,0.29895,3351.2,3350.9,3.2078]
[1735508964408,5.46191565,3351.3,3350.6,0.8709]
[1735508964609,0.29895,3351.2,3350.7,0.72578]
[1735508965308,0.29895,3351.1,3350.7,0.4268]
[1735508965604,0.29898,3350.8,3350.7,0.4268]
[1735508966306,0.29903,3350.3,3350.0,0.29905]
[1735508966505,0.29903,3350.2,3349.9,0.76196]
[1735508967107,2.25411565,3350.3,3349.9,0.4629]
[1735508967303,2.25411565,3350.3,3350.0,0.29904]
[1735508967902,2.25411565,3350.3,3349.9,0.4629]
[1735508968102,2.25411565,3350.0,3349.9,0.4629]
[1735508968309,2.55316565,3350.0,3349.9,0.4629]
[1735508968706,0.29905,3350.0,3349.9,0.4629]
[1735508968910,2.25411565,3350.3,3349.9,0.4629]
[1735508969410,0.29904,3350.1,3349.9,0.4629]
[1735508970108,2.25411565,3350.3,3349.9,0.4629]
[1735508970301,3.2078,3350.4,3350.1,0.29903]
[1735508970504,3.2078,3350.4,3349.9,0.4629]
[1735508971006,3.2078,3350.4,3350.2,0.29903]
[1735508971511,3.50682,3350.4,3350.0,0.29904]
[1735508971714,3.50682,3350.4,3350.1,0.29903]
[1735508972612,1.182,3350.9,3350.1,3.2078]
[1735508972613,0.29899,3350.7,3350.1,3.2078]
[1735508972800,0.29899,3350.7,3350.4,0.29901]
[1735508973001,0.299,3350.6,3350.3,0.29902]
[1735508973412,0.29898,3350.8,3350.5,0.299]
[1735508973610,0.29898,3350.8,3350.6,0.4518]
[1735508974112,5.46191565,3350.9,3350.6,0.4518]
[1735508974420,0.29899,3350.7,3350.6,0.4518]
[1735508974706,5.46191565,3350.9,3350.6,0.4518]
[1735508975109,3.2078,3350.9,3350.7,0.29898]
[1735508975304,3.2078,3350.9,3350.6,0.4518]
[1735508975611,3.2078,3350.9,3350.8,0.29898]
[1735508976010,3.2078,3350.9,3350.7,0.29898]
[1735508976206,3.2078,3350.9,3350.8,0.29898]
[1735508976710,2.55306565,3351.2,3350.9,0.29896]
[1735508977108,2.25411565,3351.2,3350.7,0.8854]
[1735508977307,2.55305565,3351.2,3350.9,0.29896]
[1735508978009,2.55305565,3351.2,3350.8,0.29897]
[1735508978209,2.55305565,3351.2,3350.7,0.8854]
[1735508978511,2.55305565,3351.2,3350.9,0.29897]
[1735508979419,3.50674,3351.3,3351.0,0.29896]
[1735508979714,3.2078,3351.3,3350.7,0.8854]
[1735508980113,3.2078,3351.3,3351.1,0.29894]
[1735508980514,2.25411565,3351.2,3350.7,0.8854]
[1735508980713,0.29898,3350.8,3350.7,0.8854]
[1735508980908,0.29898,3350.8,3350.7,0.4608]
[1735508983011,0.29901,3350.5,3350.2,0.29903]
[1735508983318,0.29902,3350.4,3350.1,0.29903]